[Event "XIX Najdorf Memorial 2019"]
[Site "Warsaw"]
[Date "2019.07.08"]
[Round "3.6"]
[White "Zebracki, Tomasz"]
[Black "Tomaszewski, Kacper"]
[Result "1/2-1/2"]
[ECO "B10"]
[WhiteElo "2183"]
[BlackElo "2346"]
[Annotator "NA"]
[PlyCount "158"]
[EventDate "2019.07.06"]
[EventType "swiss"]
[EventCountry "POL"]
[SourceTitle "playchess.com"]
[Source "ChessBase"]
[SourceQuality "1"]
[TimeControl "40/5400+30:1800+30"]

1. e4 {[%emt 0:00:00]} c6 {[%emt 0:00:00]} 2. c4 {[%emt 0:00:00]} d5 {[%emt 0:00:00]} 3. cxd5 {[%emt 0:00:12]} cxd5 {[%emt 0:00:06]} 4. exd5 {[%emt 0:00:04]} Nf6 {[%emt 0:00:08]} 5. Nc3 {[%emt 0:00:16]} g6 {[%emt 0:00:18]} 6. Nf3 {[%emt 0:05:01]} Bg7 {[%emt 0:03:57]} 7. Bc4 {[%emt 0:00:31]} O-O {[%emt 0:01:27]} 8. O-O {[%emt 0:00:39]} Nbd7 {[%emt 0:00:27]} 9. d3 {[%emt 0:02:04]} a6 {[%emt 0:01:15]} 10. a4 {[%emt 0:01:08]} b6 {[%emt 0:00:07]} 11. Bf4 {[%emt 0:11:49]} Bb7 {[%emt 0:01:36]} 12. Rc1 {[%emt 0:03:17]} Rc8 {[%emt 0:02:44]} 13. Re1 {[%emt 0:06:24]} h6 {[%emt 0:16:32]} 14. h3 {[%emt 0:01:24]} Kh7 {[%emt 0:02:15]} 15. Nd4 {[%emt 0:20:54]} Nxd5 {[%emt 0:08:05]} 16. Bxd5 {[%emt 0:01:12]} Bxd5 {[%emt 0:00:33]} 17. Nxd5 {[%emt 0:00:35]} Rxc1 {[%emt 0:05:23]} 18. Qxc1 {[%emt 0:00:59]} Nc5 {[%emt 0:00:06]} 19. Qc4 {[%emt 0:18:28]} e6 {[%emt 0:09:08]} 20. Nxb6 {[%emt 0:03:52]} Bxd4 {[%emt 0:01:14]} 21. Rd1 {[%emt 0:00:24]} e5 {[%emt 0:02:02]} 22. Nd5 {[%emt 0:01:29]} Nxa4 {[%emt 0:05:12]} 23. Qxa4 {[%emt 0:00:01]} Qxd5 {[%emt 0:00:12]} 24. Be3 {[%emt 0:00:07]} Bxe3 {[%emt 0:15:28]} 25. fxe3 {[%emt 0:00:01]} Rb8 {[%emt 0:00:09]} 26. Rd2 {[%emt 0:07:21]} Qc5 {[%emt 0:03:56]} 27. Re2 {[%emt 0:00:01]} Qb5 {[%emt 0:07:16]} 28. Qxb5 {[%emt 0:02:38]} Rxb5 {[%emt 0:00:12]} 29. d4 {[%emt 0:01:02]} exd4 {[%emt 0:00:07]} 30. exd4 {[%emt 0:00:04]} Kg7 {[%emt 0:00:07]} 31. Kf2 {[%emt 0:00:14]} Rb3 {[%emt 0:00:22]} 32. Rd2 {[%emt 0:08:23]} Kf6 {[%emt 0:00:08]} 33. Ke2 {[%emt 0:01:12]} Ke6 {[%emt 0:00:07]} 34. Kd1 {[%emt 0:02:55]} Kd5 {[%emt 0:00:27]} 35. Kc2 {[%emt 0:00:07]} Rb4 {[%emt 0:01:22]} 36. Rf2 {[%emt 0:00:21]} f5 {[%emt 0:00:12]} 37. g4 {[%emt 0:00:10]} fxg4 {[%emt 0:00:41]} 38. hxg4 {[%emt 0:00:01]} Rxd4 {[%emt 0:00:12]} 39. Rh2 {[%emt 0:00:49]} Rxg4 {[%emt 0:00:51]} 40. Rxh6 {[%emt 0:00:00]} Kc4 {[%emt 0:00:00]} 41. Rh8 {[%emt 0:03:30]} Rg2+ {[%emt 0:09:19]} 42. Kb1 {[%emt 0:00:11]} g5 {[%emt 0:00:35]} 43. Ra8 {[%emt 0:03:25]} Kb5 {[%emt 0:00:18]} 44. Rb8+ {[%emt 0:01:16]} Kc6 {[%emt 0:00:29]} 45. Ra8 {[%emt 0:00:46]} Kb6 {[%emt 0:01:09]} 46. Rb8+ {[%emt 0:00:17]} Kc7 {[%emt 0:02:09]} 47. Ra8 {[%emt 0:00:08]} Kb7 {[%emt 0:00:47]} 48. Rg8 {[%emt 0:00:02]} g4 {[%emt 0:00:31]} 49. Rg6 {[%emt 0:00:14]} g3 {[%emt 0:00:10]} 50. Ka2 {[%emt 0:00:10]} Rg1 {[%emt 0:00:35]} 51. Kb3 {[%emt 0:00:23]} g2 {[%emt 0:00:19]} 52. Ka2 {[%emt 0:00:23]} Kc7 {[%emt 0:00:12]} 53. Rg7+ {[%emt 0:00:27]} Kd6 {[%emt 0:00:18]} 54. Rg6+ {[%emt 0:00:14]} Ke5 {[%emt 0:00:26]} 55. Rg8 {[%emt 0:00:09]} Kf6 {[%emt 0:01:49]} 56. Rg3 {[%emt 0:00:11]} Kf5 {[%emt 0:00:31]} 57. Rg8 {[%emt 0:00:10]} Kf4 {[%emt 0:00:31]} 58. Rf8+ {[%emt 0:00:07]} Kg5 {[%emt 0:00:16]} 59. Rg8+ {[%emt 0:00:11]} Kh4 {[%emt 0:00:52]} 60. Rh8+ {[%emt 0:00:07]} Kg3 {[%emt 0:00:17]} 61. Rg8+ {[%emt 0:00:10]} Kh3 {[%emt 0:00:56]} 62. Rh8+ {[%emt 0:00:08]} Kg4 {[%emt 0:00:07]} 63. Rg8+ {[%emt 0:00:05]} Kf5 {[%emt 0:00:04]} 64. Rf8+ {[%emt 0:00:23]} Ke5 {[%emt 0:00:16]} 65. Rg8 {[%emt 0:00:10]} Kf6 {[%emt 0:00:29]} 66. Rg3 {[%emt 0:00:06]} a5 {[%emt 0:00:13]} 67. Rg8 {[%emt 0:00:35]} Ke5 {[%emt 0:00:07]} 68. Re8+ {[%emt 0:00:11]} Kd5 {[%emt 0:00:09]} 69. Rg8 {[%emt 0:00:10]} Kc4 {[%emt 0:00:09]} 70. Rc8+ {[%emt 0:00:17]} Kb4 {[%emt 0:00:20]} 71. Rb8+ {[%emt 0:00:03]} Kc5 {[%emt 0:00:06]} 72. Rc8+ {[%emt 0:00:14]} Kd6 {[%emt 0:01:52]} 73. Rg8 {[%emt 0:00:12]} a4 {[%emt 0:00:09]} 74. Rg3 {[%emt 0:00:17]} Ke5 {[%emt 0:00:10]} 75. Rg8 {[%emt 0:00:11]} Kf6 {[%emt 0:00:23]} 76. Rg3 {[%emt 0:00:06]} Kf7 {[%emt 0:00:04]} 77. Rf3+ {[%emt 0:00:18]} Kg6 {[%emt 0:00:51]} 78. Rg3+ {[%emt 0:00:01]} Kf5 {[%emt 0:00:07]} 79. Rg8 {[%emt 0:00:05]} Kf4 {[%emt 0:00:17]} 1/2-1/2

[Event "XIX Najdorf Memorial 2019"]
[Site "Warsaw"]
[Date "2019.07.08"]
[Round "3.7"]
[White "Nguyen, Piotr"]
[Black "Heberla, Bartlomiej"]
[Result "0-1"]
[ECO "D31"]
[WhiteElo "2420"]
[BlackElo "2534"]
[Annotator "ChessBase"]
[PlyCount "68"]
[EventDate "2019.07.06"]
[EventType "swiss"]
[EventCountry "POL"]
[SourceTitle "playchess.com"]
[Source "ChessBase"]
[SourceQuality "1"]
[TimeControl "40/5400+30:1800+30"]

1. d4 {[%emt 0:00:00]} d5 {[%emt 0:06:39]} 2. c4 {[%emt 0:00:00]} e6 {[%emt 0:00:07]} 3. Nc3 {[%emt 0:00:09]} a6 {[%emt 0:00:13]} 4. cxd5 {[%emt 0:02:29]} exd5 {[%emt 0:03:52]} 5. Qb3 {[%emt 0:00:04]} c6 {[%emt 0:01:31]} 6. e4 {[%emt 0:00:36]} dxe4 {[%emt 0:00:12]} 7. Bc4 {[%emt 0:00:11]} Qe7 {[%emt 0:00:08]} 8. a4 {[%emt 0:02:08]} Nf6 {[%emt 0:00:02]} 9. Nge2 {[%emt 0:08:18]} Bf5 {[%emt 0:15:05]} 10. O-O {[%emt 0:07:59]} Bg6 {[%emt 0:00:02]} 11. Nf4 {[%emt 0:23:13]} Qc7 {[%emt 0:04:04]} 12. Re1 {[%emt 0:09:43]} Bd6 {[%emt 0:06:17]} 13. g3 {[%emt 0:01:42]} O-O {[%emt 0:00:31]} 14. Nxg6 {[%emt 0:00:18]} hxg6 {[%emt 0:00:08]} 15. Nxe4 {[%emt 0:00:25]} Nxe4 {[%emt 0:00:27]} 16. Rxe4 {[%emt 0:00:04]} Nd7 {[%emt 0:00:06]} 17. Rg4 {[%emt 0:09:31]} Nf6 {[%emt 0:35:59]} 18. Rxg6 {[%emt 0:02:29]} b5 {[%emt 0:01:22]} 19. Bd3 {[%emt 0:06:06]} bxa4 {[%emt 0:00:11]} 20. Rxa4 {[%emt 0:05:38]} Rab8 {[%emt 0:01:55]} 21. Qa2 {[%emt 0:00:10]} Nd5 {[%emt 0:01:28]} 22. Rg4 {[%emt 0:01:11]} Rfe8 {[%emt 0:02:35]} 23. Bh6 {[%emt 0:04:10]} Bf8 {[%emt 0:02:48]} 24. Bf4 {[%emt 0:03:04]} Bd6 {[%emt 0:08:08]} 25. Bxd6 {[%emt 0:01:10]} Re1+ {[%emt 0:00:44]} 26. Kg2 {[%emt 0:00:27]} Qxd6 {[%emt 0:00:02]} 27. Re4 {[%emt 0:05:25]} Rd1 {[%emt 0:01:19]} 28. Qa3 {[%emt 0:04:33]} Qd8 {[%emt 0:06:09]} 29. Bxa6 {[%emt 0:01:46]} Nf6 {[%emt 0:01:24]} 30. Re2 {[%emt 0:01:14]} Qd5+ {[%emt 0:00:11]} 31. Kh3 {[%emt 0:00:37]} Qf5+ {[%emt 0:00:38]} 32. Kg2 {[%emt 0:00:05]} Qd5+ {[%emt 0:00:04]} 33. Kh3 {[%emt 0:00:03]} Rg1 {[%emt 0:00:26]} 34. Ra5 {[%emt 0:01:29]} Qd7+ {[%emt 0:00:14]} 0-1

[Event "XIX Najdorf Memorial 2019"]
[Site "Warsaw"]
[Date "2019.07.08"]
[Round "3.8"]
[White "Bednarczyk, Damian"]
[Black "Menezes, Christoph"]
[Result "0-1"]
[ECO "B20"]
[WhiteElo "2256"]
[BlackElo "2413"]
[Annotator "NA"]
[PlyCount "76"]
[EventDate "2019.07.06"]
[EventType "swiss"]
[EventCountry "POL"]
[SourceTitle "playchess.com"]
[Source "ChessBase"]
[SourceQuality "1"]
[TimeControl "40/5400+30:1800+30"]

1. e4 {[%emt 0:01:00]} c5 {[%emt 0:00:00]} 2. c4 {[%emt 0:00:16]} Nc6 {[%emt 0:01:30]} 3. Ne2 {[%emt 0:00:08]} Nf6 {[%emt 0:01:28]} 4. Nbc3 {[%emt 0:00:10]} e6 {[%emt 0:00:37]} 5. d4 {[%emt 0:01:20]} cxd4 {[%emt 0:00:16]} 6. Nxd4 {[%emt 0:00:08]} Bb4 {[%emt 0:00:30]} 7. Nxc6 {[%emt 0:00:10]} bxc6 {[%emt 0:00:24]} 8. Bd3 {[%emt 0:00:14]} e5 {[%emt 0:01:03]} 9. O-O {[%emt 0:01:58]} O-O {[%emt 0:03:39]} 10. Bg5 {[%emt 0:06:42]} h6 {[%emt 0:02:41]} 11. Bh4 {[%emt 0:00:36]} Bc5 {[%emt 0:02:02]} 12. Kh1 {[%emt 0:10:44]} d6 {[%emt 0:07:54]} 13. f3 {[%emt 0:14:00]} Bd4 {[%emt 0:05:46]} 14. Rb1 {[%emt 0:04:32]} Be6 {[%emt 0:09:32]} 15. Qd2 {[%emt 0:06:45]} Nxe4 {[%emt 0:07:40]} 16. Qe1 {[%emt 0:01:27]} Nf6 {[%emt 0:03:52]} 17. f4 {[%emt 0:11:26]} e4 {[%emt 0:23:51]} 18. Nxe4 {[%emt 0:09:24]} d5 {[%emt 0:03:17]} 19. Nxf6+ {[%emt 0:02:57]} Bxf6 {[%emt 0:00:07]} 20. Bxf6 {[%emt 0:00:23]} Qxf6 {[%emt 0:00:05]} 21. f5 {[%emt 0:00:08]} Bd7 {[%emt 0:00:21]} 22. Qg3 {[%emt 0:02:02]} Rfe8 {[%emt 0:01:55]} 23. b4 {[%emt 0:12:26]} Re5 {[%emt 0:02:35]} 24. cxd5 {[%emt 0:03:14]} cxd5 {[%emt 0:00:50]} 25. Qf2 {[%emt 0:00:47]} Qb6 {[%emt 0:01:15]} 26. h3 {[%emt 0:04:24]} Re3 {[%emt 0:01:25]} 27. Rbd1 {[%emt 0:01:32]} f6 {[%emt 0:04:53]} 28. Qf4 {[%emt 0:02:09]} Rae8 {[%emt 0:01:05]} 29. Bc2 {[%emt 0:00:33]} Bb5 {[%emt 0:00:50]} 30. Rf2 {[%emt 0:00:44]} Bc4 {[%emt 0:00:32]} 31. Qd4 {[%emt 0:02:00]} Re1+ {[%emt 0:06:28]} 32. Kh2 {[%emt 0:00:01]} Qb8+ {[%emt 0:01:38]} 33. g3 {[%emt 0:00:35]} R8e3 {[%emt 0:01:12]} 34. Qg4 {[%emt 0:01:05]} R3e2 {[%emt 0:02:50]} 35. Rd2 {[%emt 0:00:29]} Rxd2 {[%emt 0:01:21]} 36. Rxd2 {[%emt 0:00:01]} Qb6 {[%emt 0:00:19]} 37. Rg2 {[%emt 0:00:39]} Bf1 {[%emt 0:01:01]} 38. Rd2 {[%emt 0:01:00]} Bd3 {[%emt 0:00:07]} 0-1

[Event "XIX Najdorf Memorial 2019"]
[Site "Warsaw"]
[Date "2019.07.08"]
[Round "3.9"]
[White "AlHuwar, Jasem"]
[Black "Terletsky, Oleg"]
[Result "1-0"]
[ECO "A05"]
[WhiteElo "2255"]
[BlackElo "2408"]
[Annotator "NA"]
[PlyCount "59"]
[EventDate "2019.07.06"]
[EventType "swiss"]
[EventCountry "POL"]
[SourceTitle "playchess.com"]
[Source "ChessBase"]
[SourceQuality "1"]
[TimeControl "40/5400+30:1800+30"]

1. Nf3 {[%emt 0:06:10]} Nf6 {[%emt 0:00:00]} 2. g3 {[%emt 0:00:05]} g6 {[%emt 0:00:00]} 3. b3 {[%emt 0:00:02]} d5 {[%emt 0:00:00]} 4. c4 {[%emt 0:00:05]} d4 {[%emt 0:00:08]} 5. Bb2 {[%emt 0:00:42]} c5 {[%emt 0:00:13]} 6. b4 {[%emt 0:05:25]} Bg7 {[%emt 0:04:11]} 7. bxc5 {[%emt 0:00:22]} Nc6 {[%emt 0:00:04]} 8. d3 {[%emt 0:01:46]} O-O {[%emt 0:00:29]} 9. Nbd2 {[%emt 0:00:20]} e5 {[%emt 0:01:35]} 10. Bg2 {[%emt 0:00:09]} Nd7 {[%emt 0:02:23]} 11. Nb3 {[%emt 0:00:29]} Re8 {[%emt 0:14:34]} 12. Nfd2 {[%emt 0:09:31]} f5 {[%emt 0:02:47]} 13. a4 {[%emt 0:01:27]} Bf8 {[%emt 0:19:52]} 14. Ba3 {[%emt 0:03:40]} Nf6 {[%emt 0:00:07]} 15. Qc2 {[%emt 0:01:44]} e4 {[%emt 0:04:43]} 16. dxe4 {[%emt 0:09:27]} fxe4 {[%emt 0:00:06]} 17. Nxe4 {[%emt 0:00:06]} Bf5 {[%emt 0:01:20]} 18. Nxf6+ {[%emt 0:01:33]} Qxf6 {[%emt 0:00:09]} 19. Qd2 {[%emt 0:02:36]} Bg4 {[%emt 0:02:52]} 20. O-O {[%emt 0:04:34]} Rxe2 {[%emt 0:04:25]} 21. Bd5+ {[%emt 0:03:49]} Kh8 {[%emt 0:01:04]} 22. Qd3 {[%emt 0:00:17]} Bg7 {[%emt 0:03:27]} 23. h3 {[%emt 0:09:52]} Ne5 {[%emt 0:01:38]} 24. Qd1 {[%emt 0:00:37]} Bf3 {[%emt 0:15:10]} 25. Nxd4 {[%emt 0:00:27]} Bxd5 {[%emt 0:07:58]} 26. cxd5 {[%emt 0:00:06]} Nf3+ {[%emt 0:05:09]} 27. Nxf3 {[%emt 0:00:06]} Qxf3 {[%emt 0:00:03]} 28. Ra2 {[%emt 0:00:13]} Rae8 {[%emt 0:00:50]} 29. d6 {[%emt 0:00:44]} R8e3 {[%emt 0:01:57]} 30. Rxe2 {[%emt 0:00:37]} 1-0

[Event "XIX Najdorf Memorial 2019"]
[Site "Warsaw"]
[Date "2019.07.08"]
[Round "3.9"]
[White "Goslawski, Michal"]
[Black "Janik, Igor"]
[Result "1/2-1/2"]
[ECO "A06"]
[WhiteElo "2091"]
[BlackElo "2495"]
[Annotator "ChessBase"]
[PlyCount "117"]
[EventDate "2019.07.06"]
[EventType "swiss"]
[EventCountry "POL"]
[SourceTitle "playchess.com"]
[Source "ChessBase"]
[SourceQuality "1"]
[TimeControl "40/5400+30:1800+30"]

1. Nf3 {[%emt 0:00:00]} d5 {[%emt 0:00:00]} 2. g3 {[%emt 0:00:00]} Nf6 {[%emt 0:00:00]} 3. Bg2 {[%emt 0:00:04]} c6 {[%emt 0:00:25]} 4. c4 {[%emt 0:00:13]} g6 {[%emt 0:00:09]} 5. b3 {[%emt 0:01:07]} Bg7 {[%emt 0:00:10]} 6. Bb2 {[%emt 0:00:04]} O-O {[%emt 0:00:08]} 7. O-O {[%emt 0:00:16]} Bg4 {[%emt 0:00:34]} 8. d3 {[%emt 0:00:21]} Bxf3 {[%emt 0:00:18]} 9. Bxf3 {[%emt 0:00:07]} e6 {[%emt 0:00:13]} 10. Nd2 {[%emt 0:01:36]} a5 {[%emt 0:01:26]} 11. Qc2 {[%emt 0:06:09]} Nbd7 {[%emt 0:01:39]} 12. d4 {[%emt 0:04:01]} a4 {[%emt 0:07:55]} 13. Rfd1 {[%emt 0:07:10]} b5 {[%emt 0:07:21]} 14. Ba3 {[%emt 0:03:42]} Re8 {[%emt 0:03:22]} 15. cxb5 {[%emt 0:10:04]} cxb5 {[%emt 0:00:07]} 16. Bb4 {[%emt 0:10:17]} Qb6 {[%emt 0:03:28]} 17. e3 {[%emt 0:00:16]} Rac8 {[%emt 0:06:05]} 18. Qd3 {[%emt 0:00:57]} e5 {[%emt 0:02:09]} 19. Be2 {[%emt 0:00:10]} exd4 {[%emt 0:01:53]} 20. exd4 {[%emt 0:01:20]} Ne4 {[%emt 0:06:25]} 21. Nf3 {[%emt 0:00:09]} Qe6 {[%emt 0:10:28]} 22. Bf1 {[%emt 0:04:52]} Qf5 {[%emt 0:04:11]} 23. Rac1 {[%emt 0:05:39]} Ndf6 {[%emt 0:02:45]} 24. Be1 {[%emt 0:05:17]} axb3 {[%emt 0:02:06]} 25. axb3 {[%emt 0:00:57]} Rxc1 {[%emt 0:04:03]} 26. Rxc1 {[%emt 0:00:07]} Bh6 {[%emt 0:00:05]} 27. Ra1 {[%emt 0:02:36]} Rb8 {[%emt 0:07:38]} 28. Ne5 {[%emt 0:03:28]} Bf8 {[%emt 0:05:47]} 29. Qf3 {[%emt 0:03:22]} Qe6 {[%emt 0:01:09]} 30. Ra7 {[%emt 0:01:45]} Bc5 {[%emt 0:00:55]} 31. dxc5 {[%emt 0:01:40]} Qxe5 {[%emt 0:00:38]} 32. c6 {[%emt 0:02:43]} d4 {[%emt 0:01:47]} 33. Qf4 {[%emt 0:12:59]} Qxf4 {[%emt 0:00:55]} 34. gxf4 {[%emt 0:00:02]} Nd5 {[%emt 0:02:07]} 35. Ba5 {[%emt 0:04:30]} Nec3 {[%emt 0:01:14]} 36. Rd7 {[%emt 0:00:40]} Rc8 {[%emt 0:00:51]} 37. c7 {[%emt 0:02:14]} Kg7 {[%emt 0:00:16]} 38. Bxb5 {[%emt 0:02:55]} Nxb5 {[%emt 0:02:40]} 39. Rxd5 {[%emt 0:00:07]} Nxc7 {[%emt 0:00:01]} 40. Rc5 {[%emt 0:00:00]} d3 {[%emt 0:00:00]} 41. Kf1 {[%emt 0:02:45]} Rd8 {[%emt 0:00:22]} 42. Rxc7 {[%emt 0:07:09]} d2 {[%emt 0:00:05]} 43. Bc3+ {[%emt 0:00:06]} Kf8 {[%emt 0:00:09]} 44. Bxd2 {[%emt 0:00:55]} Rxd2 {[%emt 0:00:03]} 45. Rc3 {[%emt 0:05:36]} Rb2 {[%emt 0:00:47]} 46. Kg2 {[%emt 0:00:40]} Kg7 {[%emt 0:00:54]} 47. Kf3 {[%emt 0:00:25]} h5 {[%emt 0:00:49]} 48. Ke3 {[%emt 0:00:21]} Kf6 {[%emt 0:02:06]} 49. h3 {[%emt 0:00:23]} Rb1 {[%emt 0:00:40]} 50. Ke4 {[%emt 0:01:29]} Re1+ {[%emt 0:00:21]} 51. Re3 {[%emt 0:03:07]} Rf1 {[%emt 0:00:07]} 52. Rf3 {[%emt 0:00:36]} Re1+ {[%emt 0:00:14]} 53. Kd4 {[%emt 0:01:19]} Rd1+ {[%emt 0:00:52]} 54. Kc4 {[%emt 0:01:53]} Kf5 {[%emt 0:00:12]} 55. b4 {[%emt 0:01:16]} Ke4 {[%emt 0:00:06]} 56. Rb3 {[%emt 0:01:28]} Rd2 {[%emt 0:01:07]} 57. b5 {[%emt 0:02:12]} Rxf2 {[%emt 0:00:21]} 58. b6 {[%emt 0:00:15]} Rc2+ {[%emt 0:00:03]} 59. Kb5 1/2-1/2

[Event "XIX Najdorf Memorial 2019"]
[Site "Warsaw"]
[Date "2019.07.08"]
[Round "3.10"]
[White "Kanarek, Marcel"]
[Black "Socko, Monika"]
[Result "0-1"]
[ECO "C03"]
[WhiteElo "2493"]
[BlackElo "2443"]
[Annotator "ChessBase"]
[PlyCount "154"]
[EventDate "2019.07.06"]
[EventType "swiss"]
[EventCountry "POL"]
[SourceTitle "playchess.com"]
[Source "ChessBase"]
[SourceQuality "1"]
[TimeControl "40/5400+30:1800+30"]

1. e4 {[%emt 0:00:00]} e6 {[%emt 0:00:00]} 2. d4 {[%emt 0:00:00]} d5 {[%emt 0:00:00]} 3. Nd2 {[%emt 0:00:00]} Be7 {[%emt 0:00:00]} 4. Ngf3 {[%emt 0:00:18]} Nf6 {[%emt 0:00:08]} 5. e5 {[%emt 0:00:21]} Nfd7 {[%emt 0:00:05]} 6. Bd3 {[%emt 0:00:40]} c5 {[%emt 0:00:06]} 7. c3 {[%emt 0:01:46]} Nc6 {[%emt 0:00:03]} 8. O-O {[%emt 0:01:28]} g5 {[%emt 0:00:05]} 9. dxc5 {[%emt 0:01:07]} Ndxe5 {[%emt 0:00:08]} 10. Bb5 {[%emt 0:06:48]} Bd7 {[%emt 0:00:34]} 11. Qe2 {[%emt 0:13:44]} Ng6 {[%emt 0:07:25]} 12. Nb3 {[%emt 0:06:23]} O-O {[%emt 0:07:13]} 13. Bxc6 {[%emt 0:18:52]} bxc6 {[%emt 0:02:42]} 14. Ne5 {[%emt 0:01:04]} Nxe5 {[%emt 0:07:14]} 15. Qxe5 {[%emt 0:00:02]} a5 {[%emt 0:10:03]} 16. Qg3 {[%emt 0:10:49]} f6 {[%emt 0:00:31]} 17. f4 {[%emt 0:02:12]} Qc7 {[%emt 0:01:17]} 18. Be3 {[%emt 0:01:55]} a4 {[%emt 0:02:57]} 19. Nd2 {[%emt 0:01:57]} Kh8 {[%emt 0:04:29]} 20. fxg5 {[%emt 0:01:14]} Qxg3 {[%emt 0:00:05]} 21. hxg3 {[%emt 0:00:07]} e5 {[%emt 0:03:52]} 22. Nf3 {[%emt 0:07:56]} Kg8 {[%emt 0:13:59]} 23. gxf6 {[%emt 0:07:13]} Bxf6 {[%emt 0:00:16]} 24. Bh6 {[%emt 0:00:10]} Rfe8 {[%emt 0:02:40]} 25. Ng5 {[%emt 0:03:51]} Bxg5 {[%emt 0:06:29]} 26. Bxg5 {[%emt 0:00:02]} Be6 {[%emt 0:02:28]} 27. Rae1 {[%emt 0:05:03]} e4 {[%emt 0:03:09]} 28. Rf6 {[%emt 0:02:00]} Ra7 {[%emt 0:01:28]} 29. Bh6 {[%emt 0:00:49]} Rf7 {[%emt 0:00:45]} 30. Ref1 {[%emt 0:00:22]} Ree7 {[%emt 0:00:09]} 31. g4 {[%emt 0:04:04]} Bxg4 {[%emt 0:04:30]} 32. Rxc6 {[%emt 0:00:36]} e3 {[%emt 0:00:09]} 33. Re1 {[%emt 0:00:36]} e2 {[%emt 0:00:05]} 34. Rd6 {[%emt 0:01:40]} Rf5 {[%emt 0:00:41]} 35. c6 {[%emt 0:00:54]} Kf7 {[%emt 0:00:32]} 36. g3 {[%emt 0:00:53]} Rf3 {[%emt 0:06:10]} 37. Bf4 {[%emt 0:00:37]} Bh3 {[%emt 0:00:15]} 38. Kh2 {[%emt 0:00:27]} Bf5 {[%emt 0:05:52]} 39. Rxd5 {[%emt 0:00:49]} Be4 {[%emt 0:01:38]} 40. Rd7 {[%emt 0:00:00]} Rf2+ {[%emt 0:00:00]} 41. Kh3 {[%emt 0:15:56]} Bf5+ {[%emt 0:03:33]} 42. g4 {[%emt 0:00:25]} Bxd7 {[%emt 0:04:45]} 43. cxd7 Rxd7 {[%emt 0:01:43]} 44. Kg3 {[%emt 0:00:50]} Rf1 {[%emt 0:00:14]} 45. Rxe2 {[%emt 0:00:05]} Rd3+ {[%emt 0:00:07]} 46. Be3 {[%emt 0:01:20]} a3 {[%emt 0:00:48]} 47. bxa3 {[%emt 0:04:00]} Rxc3 {[%emt 0:00:36]} 48. Kg2 {[%emt 0:05:27]} Rd1 {[%emt 0:00:14]} 49. Kf2 {[%emt 0:01:31]} Rxa3 {[%emt 0:00:40]} 50. Bc5 {[%emt 0:00:13]} Ra4 {[%emt 0:00:47]} 51. g5 {[%emt 0:03:44]} Rd5 {[%emt 0:02:48]} 52. Re7+ {[%emt 0:01:36]} Kg6 {[%emt 0:00:04]} 53. Be3 {[%emt 0:00:17]} Rxa2+ {[%emt 0:00:44]} 54. Kf3 {[%emt 0:00:16]} Rf5+ {[%emt 0:03:07]} 55. Kg4 {[%emt 0:01:11]} Ra4+ {[%emt 0:04:17]} 56. Kg3 {[%emt 0:00:03]} Rf7 {[%emt 0:00:44]} 57. Re5 {[%emt 0:01:34]} Rc4 {[%emt 0:00:16]} 58. Rb5 {[%emt 0:00:57]} Rc3 {[%emt 0:02:08]} 59. Rb6+ {[%emt 0:00:41]} Kf5 {[%emt 0:01:08]} 60. Kf3 {[%emt 0:00:00]} Ra3 {[%emt 0:02:09]} 61. Rh6 {[%emt 0:01:00]} Rb3 {[%emt 0:01:34]} 62. Ra6 {[%emt 0:00:08]} Ke5+ {[%emt 0:01:20]} 63. Ke2 {[%emt 0:00:03]} Ke4 {[%emt 0:01:56]} 64. Ra4+ {[%emt 0:00:23]} Kf5 {[%emt 0:00:04]} 65. Ra5+ {[%emt 0:01:06]} Kg4 {[%emt 0:00:16]} 66. Ra4+ {[%emt 0:00:48]} Kg3 {[%emt 0:00:27]} 67. Re4 {[%emt 0:00:33]} Rb2+ {[%emt 0:00:18]} 68. Kd3 {[%emt 0:00:28]} Kf3 {[%emt 0:00:54]} 69. Bc1 {[%emt 0:00:28]} Rb3+ {[%emt 0:04:21]} 70. Kc2 {[%emt 0:00:06]} Kxe4 {[%emt 0:00:21]} 71. Kxb3 {[%emt 0:00:01]} Kd3 {[%emt 0:00:06]} 72. Bb2 {[%emt 0:01:13]} Rf5 {[%emt 0:00:56]} 73. Bf6 {[%emt 0:00:46]} h5 {[%emt 0:01:32]} 74. Be7 {[%emt 0:00:12]} Rf7 {[%emt 0:00:19]} 75. Bf6 {[%emt 0:00:34]} h4 {[%emt 0:00:26]} 76. Bh8 {[%emt 0:00:44]} h3 {[%emt 0:00:35]} 77. g6 {[%emt 0:00:22]} Rb7+ {[%emt 0:00:03]} 0-1

[Event "XIX Najdorf Memorial 2019"]
[Site "Warsaw"]
[Date "2019.07.08"]
[Round "3.10"]
[White "Sieciechowicz, Marcin"]
[Black "Zochowski, Kacper"]
[Result "1-0"]
[ECO "E92"]
[WhiteElo "2399"]
[BlackElo "2251"]
[Annotator "NA"]
[PlyCount "103"]
[EventDate "2019.07.06"]
[EventType "swiss"]
[EventCountry "POL"]
[SourceTitle "playchess.com"]
[Source "ChessBase"]
[SourceQuality "1"]
[TimeControl "40/5400+30:1800+30"]

1. d4 {[%emt 0:00:00]} Nf6 {[%emt 0:01:56]} 2. c4 {[%emt 0:00:00]} d6 {[%emt 0:00:11]} 3. Nf3 {[%emt 0:00:04]} g6 {[%emt 0:00:29]} 4. Nc3 {[%emt 0:00:07]} Bg7 {[%emt 0:00:16]} 5. e4 {[%emt 0:00:17]} O-O {[%emt 0:00:19]} 6. Be2 {[%emt 0:00:04]} e5 {[%emt 0:00:40]} 7. Be3 {[%emt 0:00:04]} Ng4 {[%emt 0:00:33]} 8. Bg5 {[%emt 0:00:07]} f6 {[%emt 0:00:04]} 9. Bc1 {[%emt 0:00:12]} Nc6 {[%emt 0:00:20]} 10. d5 {[%emt 0:00:13]} Nd4 {[%emt 0:01:43]} 11. h3 {[%emt 0:25:18]} Nxe2 {[%emt 0:11:51]} 12. Qxe2 {[%emt 0:00:57]} Nh6 {[%emt 0:00:12]} 13. g4 {[%emt 0:00:34]} Nf7 {[%emt 0:08:48]} 14. Be3 {[%emt 0:06:58]} c5 {[%emt 0:05:29]} 15. Nd2 {[%emt 0:05:20]} a6 {[%emt 0:06:40]} 16. f3 {[%emt 0:02:05]} Bh6 {[%emt 0:02:47]} 17. Bxh6 {[%emt 0:01:54]} Nxh6 {[%emt 0:00:17]} 18. h4 {[%emt 0:01:58]} Nf7 {[%emt 0:03:05]} 19. Qe3 {[%emt 0:08:33]} b5 {[%emt 0:09:39]} 20. Kf2 {[%emt 0:04:18]} h6 {[%emt 0:03:28]} 21. h5 {[%emt 0:05:02]} g5 {[%emt 0:01:40]} 22. cxb5 {[%emt 0:01:15]} axb5 {[%emt 0:02:40]} 23. Nxb5 {[%emt 0:00:14]} Rb8 {[%emt 0:02:17]} 24. a4 {[%emt 0:00:47]} Ba6 {[%emt 0:00:44]} 25. Na7 {[%emt 0:02:53]} Rxb2 {[%emt 0:02:39]} 26. Nc6 {[%emt 0:02:23]} Qd7 {[%emt 0:11:44]} 27. Rhb1 {[%emt 0:04:35]} Rb7 {[%emt 0:05:06]} 28. Qc3 {[%emt 0:07:35]} Ra8 {[%emt 0:06:32]} 29. Nc4 {[%emt 0:04:33]} Qc7 {[%emt 0:07:24]} 30. a5 {[%emt 0:03:31]} Bxc4 {[%emt 0:01:10]} 31. Qxc4 {[%emt 0:00:07]} Rxb1 {[%emt 0:00:29]} 32. Rxb1 {[%emt 0:00:02]} Rxa5 {[%emt 0:01:10]} 33. Nxa5 {[%emt 0:00:37]} Qxa5 {[%emt 0:00:04]} 34. Qc2 {[%emt 0:05:10]} Kg7 {[%emt 0:00:14]} 35. Kg2 {[%emt 0:00:21]} Kg8 {[%emt 0:00:44]} 36. Qb2 {[%emt 0:02:27]} Qa4 {[%emt 0:01:47]} 37. Qb3 {[%emt 0:00:27]} Qa5 {[%emt 0:00:10]} 38. Qb2 {[%emt 0:01:22]} Qa4 {[%emt 0:00:10]} 39. Ra1 {[%emt 0:01:29]} Qc4 {[%emt 0:00:43]} 40. Kg3 {[%emt 0:00:00]} Kg7 {[%emt 0:00:00]} 41. Kg2 {[%emt 0:05:03]} Qd3 {[%emt 0:08:08]} 42. Rf1 {[%emt 0:04:00]} f5 {[%emt 0:13:34]} 43. exf5 {[%emt 0:00:23]} Qxd5 {[%emt 0:00:23]} 44. Qc2 {[%emt 0:01:13]} Qa8 {[%emt 0:03:35]} 45. Qc4 {[%emt 0:01:52]} Nd8 {[%emt 0:02:36]} 46. Rd1 {[%emt 0:01:32]} Qb8 {[%emt 0:00:33]} 47. Qd5 {[%emt 0:00:59]} Nf7 {[%emt 0:00:10]} 48. Qe6 {[%emt 0:00:59]} Qb7 {[%emt 0:02:10]} 49. Qg6+ {[%emt 0:01:41]} Kf8 {[%emt 0:00:12]} 50. f6 {[%emt 0:00:36]} Qb3 {[%emt 0:00:30]} 51. Qg7+ {[%emt 0:00:54]} Ke8 {[%emt 0:00:05]} 52. Rxd6 {[%emt 0:00:26]} 1-0